lending/lending_fUSD_20251022
["ID","MTS","AMOUNT","RATE_DAILY","PERIOD"]
[392061309,1761133840618,-500.0,0.00033989,2]
[392061312,1761133840628,-80014.593078,0.0003399,3]
[392061313,1761133840637,-151.0,0.00033999,2]
[392061315,1761133840647,-513.44078146,0.00033999,120]
[392061317,1761133840656,-588.74,0.00033999,120]
[392061319,1761133840665,-50000.0,0.00034,11]
[392061321,1761133840674,-45164.37789816,0.00034,2]
[392061323,1761133840683,-160.56398267,0.00034,6]
[392061326,1761133840692,-62942.1158207,0.00034,120]
[392061327,1761133840702,-150.0,0.00034,30]
[392061329,1761133840711,-531.08259297,0.00034016,2]
[392061331,1761133840720,-168.0,0.00034037,2]
[392061333,1761133840729,-205.0,0.00034041,7]
[392061335,1761133840739,-13335.765513,0.0003406,3]
[392061337,1761133840748,-500.0,0.00034066,120]
[392061339,1761133840758,-1142.45984123,0.0003407,2]
[392061342,1761133840767,-1000.0,0.0003407,2]
[392061344,1761133840776,-1000.0,0.0003407,2]
[392061346,1761133840785,-500.0,0.00034079,2]
[392061348,1761133840794,-560.17,0.0003408,30]
[392061349,1761133840803,-1000.0,0.0003408,30]
[392061351,1761133840812,-1000.0,0.0003408,30]
[392061354,1761133840821,-1000.0,0.0003408,30]
[392061356,1761133840831,-1000.0,0.0003408,30]
[392061358,1761133840840,-1000.0,0.0003408,30]
[392061360,1761133840850,-1000.0,0.0003408,30]
[392061362,1761133840859,-1000.0,0.0003408,30]
[392061364,1761133840868,-150.7,0.0003408,2]
[392061365,1761133840877,-588.74,0.00034089,120]
[392061368,1761133840886,-66678.827565,0.0003409,3]
[392061370,1761133840895,-179.93546787,0.00034099,2]
[392061372,1761133840905,-1999.0,0.00034099,120]
[392061374,1761133840915,-128184.22248797,0.000341,30]
[392061375,1761133840924,-445.0,0.000341,2]
[392061377,1761133840933,-973.0,0.000341,2]
[392061379,1761133840942,-302.0,0.000341,2]
[392061381,1761133840951,-249.11,0.00034113,30]
[392061383,1761133840960,-2000.0,0.00034117,3]
[392061386,1761133840969,-2001.0559,0.00034117,3]
[392061387,1761133840979,-2000.0,0.00034117,3]
[392061389,1761133840988,-160.56398267,0.00034126,6]
[392061391,1761133840998,-531.08259297,0.00034133,2]
[392061394,1761133841009,-150.0,0.00034133,2]
[392061395,1761133841018,-301.24,0.00034133,2]
[392061398,1761133841027,-150.0,0.00034133,2]
[392061399,1761133841036,-546.93,0.00034133,2]
[392061401,1761133841046,-2004.9317,0.00034137,3]
[392061403,1761133841055,-1098.05,0.00034138,2]
[392061405,1761133841063,-150.0,0.00034138,2]
[392061407,1761133841072,-150.0,0.00034138,2]
[392061409,1761133841082,-546.84,0.00034138,2]
[392061412,1761133841091,-150.0,0.00034138,2]
[392061414,1761133841100,-828.3,0.00034138,2]
[392061415,1761133841109,-309.23,0.00034138,2]
[392061417,1761133841117,-414.15,0.00034138,2]
[392061419,1761133841126,-176.26,0.00034138,2]
[392061421,1761133841135,-2000.0,0.0003414,3]
[392061424,1761133841145,-151.14,0.00034145,2]
[392061426,1761133841155,-333.53,0.00034145,2]
[392061428,1761133841163,-304.91,0.00034145,2]
[392061430,1761133841172,-2524.14,0.00034145,2]
[392061432,1761133841181,-344.07,0.00034145,2]
[392061434,1761133841190,-150.0,0.00034145,2]
[392061436,1761133841198,-150.0,0.00034145,2]
[392061437,1761133841208,-150.0,0.00034145,2]
[392061440,1761133841218,-150.0,0.00034145,2]
[392061441,1761133841228,-150.0,0.00034145,2]
[392061443,1761133841238,-1094.46,0.00034145,2]
[392061446,1761133841248,-168.43,0.00034145,2]
[392061448,1761133841257,-414.15,0.00034145,2]
[392061450,1761133841266,-150.0,0.00034173,5]
[392061451,1761133841275,-205.80558147,0.00034173,120]
[392061454,1761133841285,-13335.765513,0.00034176,3]
[392061456,1761133841294,-205.0,0.00034177,7]
[392061458,1761133841303,-1000.0,0.00034186,2]
[392061459,1761133841312,-588.74,0.00034189,120]
[392061462,1761133841322,-644.42024983,0.00034189,2]
[392061464,1761133841332,-53343.062052,0.0003419,3]
[392061466,1761133841341,-21278.69720874,0.00034197,2]
[392061468,1761133841350,-1845.64344455,0.000342,40]
[392061470,1761133841361,-79524.30105259,0.000342,2]
[392061471,1761133841369,-6400.01511871,0.000342,30]
[392061473,1761133841378,-150.16,0.00034213,2]
[392061475,1761133841388,-171.76,0.00034213,2]
[392061477,1761133841397,-10000.0,0.00034246,2]
[392061480,1761133841407,-500.0,0.0003425,120]
[392061481,1761133841416,-160.56398267,0.00034252,6]
[392061483,1761133841425,-500.0,0.00034262,30]
[392061486,1761133841434,-3050.90149391,0.00034262,30]
[392061487,1761133841443,-1000.0,0.0003427,2]
[392061489,1761133841453,-1000.0,0.0003427,2]
[392061491,1761133841464,-1000.0,0.0003427,2]
[392061493,1761133841477,-1000.0,0.0003427,2]
[392061496,1761133841487,-400.0,0.0003427,2]
[392061497,1761133841497,-400.0,0.0003427,2]
[392061500,1761133841508,-400.0,0.0003427,2]
[392061502,1761133841518,-400.0,0.0003427,2]
[392061503,1761133841528,-707.46045191,0.0003427,2]
[392061506,1761133841537,-13335.765513,0.00034275,3]
[392061507,1761133841549,-694.0,0.00034285,30]
[392061510,1761133841559,-7800.0,0.00034285,30]
[392061512,1761133841568,-500.0,0.00034288,7]
[392061514,1761133841578,-500.0,0.00034288,7]
[392061516,1761133841587,-13335.765513,0.00034289,3]
[392061518,1761133841595,-26671.531026,0.0003429,3]
[392061520,1761133841604,-588.74,0.00034297,120]
[392061522,1761133841613,-1000.0,0.00034298,13]
[392061524,1761133841622,-1000.0,0.00034298,13]
[392061526,1761133841631,-1000.0,0.00034298,13]
[392061528,1761133841640,-1000.0,0.00034298,13]
[392061530,1761133841649,-1000.0,0.00034298,13]
[392061532,1761133841659,-1148.16355229,0.00034298,13]
[392061534,1761133841668,-1000.0,0.00034298,13]
[392061536,1761133841677,-1000.0,0.00034298,13]
[392061538,1761133841687,-1000.0,0.00034298,13]
[392061540,1761133841695,-1000.0,0.00034298,13]
[392061542,1761133841704,-1000.0,0.00034298,13]
[392061544,1761133841713,-1000.0,0.00034298,13]
[392061546,1761133841722,-1000.0,0.00034298,13]
[392061548,1761133841731,-1000.0,0.00034298,13]
[392061550,1761133841740,-1000.0,0.00034298,13]
[392061552,1761133841748,-1000.0,0.00034298,13]
[392061554,1761133841758,-1000.0,0.00034298,13]
[392061555,1761133841767,-167.31270931,0.00034298,13]
[392061558,1761133841776,-221.5885379,0.000343,30]
[392061559,1761133841786,-500.0,0.000343,30]
[392061562,1761133841795,-88765.97201969,0.000343,30]
[392061564,1761133841804,-2428.62,0.000343,14]
[392061565,1761133841813,-469.08,0.000343,30]
[392061568,1761133841822,-150.0,0.000343,60]
[392061570,1761133841832,-159.0,0.000343,120]
[392061571,1761133841841,-184.2975,0.00034314,2]
[392061573,1761133841851,-3359.06113679,0.00034316,30]
[392061575,1761133841860,-854.0,0.0003432,7]
[392061577,1761133841869,-500.0,0.0003432,30]
[392061578,1761133841878,-30908.31767094,0.00034332,2]
[392061579,1761133841887,-297.01223527,0.0003434,120]
[392061580,1761133841896,-181.0,0.00034364,30]
[392061581,1761133841905,-160.56398267,0.00034378,6]
[392061582,1761133841915,-1761.98,0.00034385,7]
[392061583,1761133841924,-267.46074303,0.00034387,30]
[392061584,1761133841933,-248.71531821,0.00034391,30]
[392061586,1761133841942,-257.91778498,0.00034391,39]
[392061588,1761133841951,-174.94588698,0.00034396,5]
[392061590,1761133841960,-5982.38,0.00034398,2]
[392061592,1761133841969,-1412.57153306,0.000344,120]
[392061594,1761133841978,-167.24346945,0.000344,120]
[392061595,1761133841986,-182.48250726,0.000344,120]
[392061597,1761133841996,-164.45723986,0.000344,120]
[392061599,1761133842006,-176.83312215,0.000344,120]
[392061602,1761133842015,-197.64581887,0.000344,120]
[392061604,1761133842024,-164.22574656,0.000344,120]
[392061605,1761133842033,-172.09471183,0.000344,120]
[392061607,1761133842042,-190.41,0.000344,2]
[392061610,1761133842052,-1000.0,0.00034427,2]
[392061612,1761133842061,-600.0,0.00034465,37]
[392061613,1761133842070,-239.84119403,0.00034465,37]
[392061615,1761133842079,-175.96028634,0.00034498,2]
[392061617,1761133842089,-1000.0,0.00034499,36]
[392061619,1761133842097,-600.0,0.00034499,36]
[392061621,1761133842107,-500.0,0.00034499,36]
[392061623,1761133842116,-1000.0,0.00034499,38]
[392061626,1761133842125,-600.0,0.00034499,38]
[392061628,1761133842135,-500.0,0.00034499,38]
[392061630,1761133842146,-500.0,0.00034499,36]
[392061632,1761133842155,-250.0,0.00034499,36]
[392061634,1761133842163,-250.0,0.00034499,38]
[392061635,1761133842172,-500.0,0.00034499,38]
[392061638,1761133842182,-1000.0,0.00034499,36]
[392061640,1761133842191,-1000.0,0.00034499,38]
[392061642,1761133842200,-223.0315306,0.00034499,36]
[392061644,1761133842209,-231.28369723,0.00034499,38]
[392061645,1761133842220,-500.0,0.00034499,36]
[392061647,1761133842229,-500.0,0.00034499,38]
[392061662,1761133842354,-1000.0,0.00034499,36]
[392061664,1761133842363,-1000.0,0.00034499,38]
[392061666,1761133842372,-250.0,0.00034499,36]
[392061668,1761133842381,-250.0,0.00034499,38]
[392061670,1761133842390,-250.0,0.00034499,36]
[392061673,1761133842400,-250.0,0.00034499,38]
[392061675,1761133842409,-5050.0,0.000345,34]
[392061677,1761133842419,-5050.0,0.000345,37]
[392061679,1761133842428,-198.0,0.000345,14]
[392061681,1761133842437,-160.56398267,0.00034504,6]
[392061684,1761133842446,-156.94845664,0.00034504,30]
[392061685,1761133842459,-156.94845664,0.00034504,30]
[392061687,1761133842468,-156.94845664,0.00034504,30]
[392061689,1761133842477,-156.94845664,0.00034504,30]
[392061691,1761133842486,-156.94845664,0.00034504,30]
[392061693,1761133842496,-156.94845664,0.00034504,30]
[392061695,1761133842507,-156.94,0.00034504,30]
[392061698,1761133842516,-150.7936152,0.00034504,30]
[392061700,1761133842529,-150.7936152,0.00034504,30]
[392061702,1761133842538,-150.7936152,0.00034504,30]
[392061703,1761133842547,-150.7936152,0.00034504,30]
[392061705,1761133842556,-150.7936152,0.00034504,30]
[392061707,1761133842565,-150.7936152,0.00034504,30]
[392061709,1761133842575,-150.7936152,0.00034504,30]
[392061712,1761133842585,-150.7936152,0.00034504,30]
[392061714,1761133842594,-150.7936152,0.00034504,30]
[392061715,1761133842604,-150.7936152,0.00034504,30]
[392061717,1761133842613,-150.7936152,0.00034504,30]
[392061719,1761133842622,-150.7936152,0.00034504,30]
[392061721,1761133842631,-150.7936152,0.00034504,30]
[392061725,1761133842640,-150.7936152,0.00034504,30]
[392061727,1761133842649,-150.7936152,0.00034504,30]
[392061730,1761133842657,-150.7936152,0.00034504,30]
[392061733,1761133842666,-150.79,0.00034504,30]
[392061735,1761133842674,-166.47295966,0.00034504,30]
[392061737,1761133842684,-166.47,0.00034504,30]
[392061739,1761133842692,-163.57818567,0.00034505,2]
[392061741,1761133842701,-170.7914781,0.00034505,2]
[392061743,1761133842710,-364.37265016,0.00034505,2]
[392061745,1761133842719,-313.23121037,0.00034505,2]
[392061748,1761133842730,-163.94,0.00034527,2]
[392061749,1761133842739,-500.0,0.00034536,30]
[392061752,1761133842748,-205.66602057,0.00034538,120]
[392061754,1761133842759,-5000.0,0.00034549,2]
[392061756,1761133842768,-681.62316727,0.00034551,2]
[392061758,1761133842777,-1000.0,0.00034573,5]
[392061760,1761133842786,-588.74,0.00034574,120]
[392061762,1761133842795,-112099.0,0.00034575,2]
[392061764,1761133842803,-588.74,0.00034596,120]
[392061766,1761133842812,-588.74,0.00034597,120]
[392061768,1761133842821,-588.74,0.00034597,120]
[392061770,1761133842829,-588.74,0.00034597,120]
[392061772,1761133842838,-588.74,0.00034597,120]
[392061774,1761133842847,-588.74,0.00034597,120]
[392061775,1761133842856,-588.74,0.00034597,120]
[392061777,1761133842865,-588.74,0.00034597,120]
[392061780,1761133842874,-588.74,0.00034597,120]
[392061782,1761133842883,-588.74,0.00034597,120]
[392061784,1761133842892,-588.74,0.00034597,120]
[392061785,1761133842902,-588.74,0.00034597,120]
[392061787,1761133842911,-588.74,0.00034597,120]
[392061790,1761133842920,-588.74,0.00034597,120]
[392061792,1761133842929,-588.74,0.00034597,120]
[392061794,1761133842938,-588.89525137,0.00034597,120]
[392061796,1761133842949,-29791.05,0.000346,15]
[392061798,1761133842958,-241416.55651961,0.000346,2]
[392061800,1761133842967,-57508.65484563,0.000346,2]
[392061802,1761133842975,-300.0,0.000346,12]
[392061804,1761133842985,-300.0,0.000346,12]
[392061806,1761133842994,-300.0,0.000346,12]
[392061808,1761133843002,-300.0,0.000346,12]
[392061810,1761133843011,-300.0,0.000346,12]
[392061812,1761133843020,-300.0,0.000346,12]
[392061814,1761133843029,-251.61,0.000346,120]
[392061816,1761133843039,-50000.0,0.00034604,34]
[392061818,1761133843048,-50000.0,0.00034604,35]
[392061819,1761133843057,-50000.0,0.00034604,36]
[392061822,1761133843067,-50000.0,0.00034604,37]
[392061824,1761133843076,-50000.0,0.00034604,38]
[392061826,1761133843085,-50000.0,0.00034604,39]
[392061828,1761133843094,-30250.97116165,0.00034604,2]
[392061830,1761133843103,-733.4604765,0.00034604,2]
[392061832,1761133843112,-5261.4983941,0.00034605,2]
[392061834,1761133843120,-351.73428507,0.00034605,2]
[392061836,1761133843130,-2490.53660113,0.00034605,2]
[392061838,1761133843139,-1049.84611052,0.00034605,2]
[392061839,1761133843148,-2051.999999,0.00034605,7]
[392061841,1761133843157,-574.44261459,0.00034605,5]
[392061844,1761133843167,-2023.61488865,0.00034605,5]
[392061846,1761133843177,-995.62048533,0.00034605,5]
[392061848,1761133843186,-600.0,0.00034605,5]
[392061850,1761133843195,-19347.53308978,0.00034605,5]
[392061852,1761133843203,-222.99834312,0.00034605,5]
[392061853,1761133843212,-1101.65519726,0.00034605,5]
[392061856,1761133843222,-447.0,0.00034605,2]
[392061858,1761133843231,-156.3,0.00034605,2]
[392061860,1761133843240,-3040.09697586,0.00034605,10]
[392061862,1761133843249,-36030.42367886,0.00034605,2]
[392061865,1761133843259,-653.82020447,0.00034605,10]
[392061868,1761133843269,-20611.754662,0.00034605,90]
[392061870,1761133843278,-7999.999999,0.00034605,120]
[392061872,1761133843287,-155.96580295,0.00034605,120]
[392061874,1761133843296,-170.05350993,0.00034605,30]
[392061876,1761133843305,-509198.53,0.00034605,45]
[392061877,1761133843314,-164.07585204,0.00034605,120]
[392061879,1761133843323,-168.46346301,0.00034605,120]
[392061881,1761133843332,-200.83541368,0.00034605,80]
[392061884,1761133843342,-13203.79789868,0.00034605,60]
[392061885,1761133843351,-711.00524578,0.00034605,90]
[392061887,1761133843361,-2496.53360833,0.00034605,30]
[392061889,1761133843370,-158.20168934,0.00034605,2]
[392061891,1761133843379,-3068.20191,0.00034605,30]
[392061893,1761133843389,-150.0,0.00034605,30]
[392061895,1761133843399,-177.36787533,0.00034605,30]
[392061897,1761133843408,-2517.74339312,0.00034605,120]
[392061899,1761133843417,-2119.27823045,0.00034605,30]
[392061901,1761133843426,-161.61540878,0.00034605,120]
[392061903,1761133843436,-117760.92956073,0.00034605,2]
[392061905,1761133843445,-10771.99691393,0.00034605,2]
[392061907,1761133843458,-5281.82629631,0.00034605,14]
[392061909,1761133843467,-5266.76333941,0.00034605,14]
[392061910,1761133843476,-743.07671644,0.00034605,2]
[392061911,1761133843485,-497.94909348,0.00034605,5]
[392061912,1761133843494,-2000.0,0.00034605,60]
[392061913,1761133843504,-501.05286745,0.00034605,60]
[392061914,1761133843513,-1183427.0,0.00034605,60]
[392061915,1761133843522,-2532.09924284,0.00034605,120]
[392061916,1761133843531,-952.88188627,0.00034605,120]
[392061917,1761133843542,-36937.85345321,0.00034605,30]
[392061919,1761133843551,-22500.000001,0.00034605,30]
[392061921,1761133843560,-2038746.70341575,0.00034605,30]
[392061923,1761133843569,-13350.47126595,0.00034605,30]
[392061925,1761133843579,-54859.80469559,0.00034605,30]
[392061927,1761133843588,-2000000.0,0.00034605,30]
[392061929,1761133843597,-692238.62,0.00034605,60]
[392061931,1761133843606,-236.01762702,0.00034605,2]
[392061933,1761133843615,-270.0,0.00034605,120]
[392061935,1761133843625,-15112.76387713,0.00034605,30]
[392061937,1761133843634,-34744.7269852,0.00034605,2]
[392061939,1761133843643,-108496.01634255,0.00034605,30]
[392061941,1761133843653,-3126195.01801751,0.00034605,30]
[392061944,1761133843671,-320.9628801,0.00034605,30]
[392061947,1761133843686,-384.45551683,0.00034605,30]
[392061952,1761133843723,-13927.59147894,0.00034605,30]
[392061954,1761133843734,-516.33129392,0.00034605,30]
[392061958,1761133843758,-920.21052636,0.00034605,30]
[392061960,1761133843772,-2739.27613519,0.00034605,30]
[392061963,1761133843783,-261.3159778,0.00034605,30]
[392062019,1761133844343,-278.04900001,0.0003425,2]
[392062022,1761133844361,-253.03359296,0.0003425,2]
[392062023,1761133844370,-454.95456464,0.00034605,30]
[392062083,1761133845090,-346.4546635,0.00032975,2]
[392062134,1761133845689,-217.718973,0.00031163,30]
[392062136,1761133845698,-114.681027,0.00031942,30]
[392062139,1761133845709,-103.037946,0.00031942,30]
[392062141,1761133845718,-217.718973,0.00031963,30]
[392062143,1761133845727,-138.863081,0.00032975,2]
[392062179,1761133851953,-479.35,0.00032975,2]
[392062180,1761133851968,-1176.61086825,0.00032975,2]
[392062181,1761133851977,-217.718973,0.00033054,30]
[392062182,1761133851987,-217.718973,0.00033371,30]
[392062183,1761133851996,-1184.0,0.00033572,2]
[392062184,1761133852006,-1191.15155657,0.00034089,120]
[392062185,1761133852015,-531.08259297,0.00034366,2]
[392062186,1761133852024,-1154.60100408,0.00034605,30]
[392062303,1761134646242,289.04,0.00013699,2]
[392062304,1761134797489,213.45,0.00014843,2]
[392062382,1761134824724,1500.0,0.00026922,120]
[392062475,1761134994064,1000.0,0.00015001,2]
[392062484,1761135031824,-213.45,0.00015624,2]
[392062485,1761135031833,-213.45,0.00016405,2]
[392062486,1761135031843,-213.45,0.00017186,2]
[392062487,1761135031855,-213.45,0.00017968,2]
[392062488,1761135031864,-213.45,0.00018749,2]
[392062489,1761135031873,-213.45,0.0001953,2]
[392062490,1761135031883,-289.04,0.00020187,2]
[392062491,1761135031893,-213.45,0.00020311,2]
[392062492,1761135031908,-44.46912022,0.00021092,2]
[392062493,1761135031921,-168.98087978,0.00021092,2]
[392062494,1761135031930,-213.45,0.00021874,2]
[392062495,1761135031939,-213.45,0.00022655,2]
[392062496,1761135031950,-213.45,0.00023436,2]
[392062497,1761135031959,-213.45,0.00024217,2]
[392062498,1761135031977,-161.0,0.00024658,2]
[392062499,1761135031989,-213.45,0.00024998,2]
[392062500,1761135031999,-150.0,0.00025762,2]
[392062501,1761135032008,-213.45,0.0002578,2]
[392062502,1761135032020,-213.45,0.00026561,2]
[392062503,1761135032030,-289.04,0.00026676,2]
[392062504,1761135032040,-200.0,0.00026915,2]
[392062505,1761135032050,-191.0,0.00027,7]
[392062506,1761135032061,-28.23941908,0.00027342,2]
[392062507,1761135032088,-185.21058092,0.00027342,2]
[392062508,1761135032098,-150.0,0.0002789,2]
[392062509,1761135032110,-213.45,0.00028123,2]
[392062510,1761135032120,-15.22941908,0.00028903,2]
[392062512,1761135032132,-542.77058092,0.00028903,2]
[392062514,1761135032141,-533.0,0.00028904,2]
[392062516,1761135032152,-300.0,0.00028904,2]
[392062518,1761135032161,-300.0,0.00028904,2]
[392062520,1761135032172,-213.45,0.00028904,2]
[392062522,1761135032181,-8644.8,0.00029009,2]
[392062524,1761135032191,-8508.48,0.00029009,2]
[392062526,1761135032201,-161.0,0.00029079,2]
[392062528,1761135032211,-4801.0,0.000294,5]
[392062530,1761135032222,-213.45,0.00029686,2]
[392062532,1761135032231,-272.15813657,0.00029702,2]
[392062534,1761135032241,-272.15813657,0.00029702,2]
[392062536,1761135032250,-1330.27,0.00029801,2]
[392062538,1761135032259,-6490.80488478,0.000299,2]
[392062540,1761135032269,-500.0,0.00029973,5]
[392062542,1761135032278,-312.21779058,0.00029973,5]
[392062544,1761135032288,-150.0,0.00029986,2]
[392062546,1761135032298,-3068.20191257,0.00029998,2]
[392062548,1761135032308,-671.344,0.00029999,24]
[392062550,1761135032317,-282.79536679,0.00029999,2]
[392062553,1761135032329,-1803.44251991,0.0003,4]
[392062555,1761135032341,-2796.80480008,0.0003,4]
[392062557,1761135032354,-443.8799998,0.0003,4]
[392062560,1761135032380,-2542.62270833,0.0003,4]
[392062563,1761135032394,-772.73336228,0.0003,4]
[392062565,1761135032407,-755.3160992,0.0003,4]
[392062637,1761135037699,-20885.2005104,0.0003,4]
[392062639,1761135037709,-30000.0,0.0003,4]
[392062640,1761135037720,-30782.01772726,0.0003,4]
[392062641,1761135037729,-30000.0,0.0003,4]
[392062642,1761135037739,-30000.0,0.0003,4]
[392062643,1761135037913,-34199.8373741,0.0003,4]
[392062645,1761135037924,-30000.0,0.0003,4]
[392062647,1761135037933,-25449.12984407,0.0003,30]
[392062649,1761135037943,-4000.0,0.00030137,30]
[392062651,1761135037952,-666.0,0.00030182,3]
[392062653,1761135037961,-150.0,0.00030327,2]
[392062655,1761135037971,-2000.0,0.000304,2]
[392062656,1761135037981,-6490.80488478,0.00030421,2]
[392062658,1761135037991,-500.0,0.00030804,120]
[392062661,1761135038001,-9922.45,0.00030804,2]
[392062662,1761135038010,-6490.80488478,0.00030942,2]
[392062665,1761135038020,-544.31627314,0.00031002,7]
[392062666,1761135038030,-420.0,0.00031187,2]
[392062668,1761135038040,-200.0,0.00031187,3]
[392062670,1761135038050,-150.0,0.00031335,2]
[392062672,1761135038059,-6490.80488478,0.00031463,2]
[392062674,1761135038068,-2548.0,0.00031914,2]
[392062676,1761135038078,-1184.0,0.00031914,2]
[392062678,1761135038087,-903.0,0.00031914,2]
[392062680,1761135038097,-6490.80488478,0.00031984,2]
[392062682,1761135038106,-2592.0,0.00032044,2]
[392062684,1761135038116,-557.0,0.00032044,2]
[392062686,1761135038127,-1000.0,0.000321,2]
[392062688,1761135038136,-160.309197,0.00032374,7]
[392062690,1761135038146,-6490.80488478,0.00032506,2]
[392062692,1761135038156,-161.94,0.00032571,2]
[392062694,1761135038165,-232.31,0.00032781,30]
[392062696,1761135038175,-1000.0,0.00032792,2]
[392062698,1761135038184,-200.0,0.00032844,2]
[392062700,1761135038193,-717.92,0.00032888,2]
[392062702,1761135038203,-500.0,0.00032961,7]
[392062704,1761135038212,-500.0,0.00032961,7]
[392062706,1761135038222,-6490.80488478,0.00033027,2]
[392062708,1761135038231,-501.33722064,0.00033066,2]
[392062710,1761135038241,-161.45,0.00033066,2]
[392062712,1761135038250,-289.04,0.00033165,2]
[392062714,1761135038260,-500.0,0.00033166,30]
[392062716,1761135038269,-1000.0,0.00033173,2]
[392062718,1761135038279,-428.0,0.00033276,7]
[392062720,1761135038288,-509.71,0.000333,7]
[392062723,1761135038298,-176.26,0.00033316,2]
[392062725,1761135038308,-414.15,0.00033316,2]
[392062727,1761135038317,-176.26,0.00033316,2]
[392062729,1761135038327,-414.15,0.00033316,2]
[392062731,1761135038336,-176.26,0.00033316,2]
[392062733,1761135038346,-414.15,0.00033316,2]
[392062735,1761135038356,-414.15,0.00033316,2]
[392062737,1761135038365,-666.0,0.0003344,30]
[392062739,1761135038375,-150.0,0.00033481,2]
[392062741,1761135038384,-150.0,0.00033481,2]
[392062743,1761135038394,-152.29441088,0.00033481,2]
[392062745,1761135038403,-150.0,0.00033481,2]
[392062747,1761135038413,-154.08751079,0.00033481,2]
[392062749,1761135038422,-200.0,0.00033481,2]
[392062751,1761135038432,-150.0,0.00033481,2]
[392062753,1761135038442,-150.0,0.00033481,2]
[392062755,1761135038451,-150.0,0.00033481,2]
[392062757,1761135038460,-150.0,0.00033481,2]
[392062759,1761135038469,-150.0,0.00033481,2]
[392062761,1761135038479,-161.0,0.00033501,2]
[392062763,1761135038488,-150.0,0.00033536,2]
[392062765,1761135038497,-150.0,0.00033536,2]
[392062767,1761135038507,-200.0,0.00033536,2]
[392062769,1761135038516,-150.0,0.00033536,2]
[392062771,1761135038525,-150.0,0.00033536,2]
[392062773,1761135038535,-6490.80488478,0.00033548,2]
[392062775,1761135038545,-694.12283923,0.00033566,2]
[392062777,1761135038553,-168.0,0.00033567,2]
[392062779,1761135038563,-200.0,0.00033591,2]
[392062781,1761135038572,-200.0,0.00033591,2]
[392062783,1761135038585,-200.0,0.00033591,2]
[392062785,1761135038595,-200.0,0.00033591,2]
[392062787,1761135038605,-280.0,0.00033651,2]
[392062789,1761135038615,-500.0,0.000338,3]
[392062791,1761135038624,-168.0,0.00033892,2]
[392062793,1761135038634,-984.22380033,0.00033934,3]
[392062795,1761135038643,-2508.612,0.00033944,2]
[392062797,1761135038653,-1269.0,0.00033944,2]
[392062799,1761135038663,-984.22380033,0.0003399,3]
[392062801,1761135038672,-5996.569725,0.00034,3]
[392062803,1761135038682,-150.0,0.00034,2]
[392062805,1761135038691,-500.0,0.00034,120]
[392062807,1761135038701,-150.0,0.00034,30]
[392062809,1761135038710,-152.0,0.00034013,3]
[392062811,1761135038719,-984.22380033,0.00034039,3]
[392062813,1761135038729,-6490.80488478,0.00034069,2]
[392062814,1761135038739,-2000.0,0.000341,2]
[392062816,1761135038749,-717.92,0.00034121,2]
[392062819,1761135038759,-176.26,0.00034127,2]
[392062821,1761135038770,-414.15,0.00034133,2]
[392062823,1761135038780,-504.960545,0.00034152,120]
[392062825,1761135038790,-2000.0,0.00034152,120]
[392062827,1761135038800,-518.607737,0.00034152,120]
[392062829,1761135038813,-428.0,0.00034159,7]
[392062831,1761135038823,-984.22380033,0.00034178,3]
[392062833,1761135038833,-984.22380033,0.00034188,3]
[392062835,1761135038843,-3746.85848081,0.00034203,2]
[392062837,1761135038853,-500.0,0.00034238,120]
[392062839,1761135038863,-428.0,0.0003424,2]